bitfinex/quotes_BTCUSD_20250308
["timestamp","ask_amount","ask_price","bid_price","bid_amount"]
[1741423819822,0.12185354,86432.0,86431.0,0.13714239]
[1741423820483,0.12185354,86432.0,86431.0,0.13672586]
[1741423821886,0.1322327,86449.0,86440.0,0.0805]
[1741423822083,0.1322327,86449.0,86441.0,0.11047673]
[1741423822285,0.011567,86446.0,86441.0,0.11047673]
[1741423822490,0.011568,86444.0,86441.0,0.10932]
[1741423822688,0.011567,86446.0,86441.0,0.10932]
[1741423823687,0.011567,86447.0,86441.0,0.340691]
[1741423824085,0.011568,86442.0,86441.0,0.10932]
[1741423824853,0.011568,86441.0,86440.0,0.0805]
[1741423825053,0.011569,86435.0,86434.0,0.0805]
[1741423825255,0.011569,86435.0,86434.0,0.18982]
[1741423825649,0.02971709,86435.0,86434.0,0.18982]
[1741423829413,0.01814809,86435.0,86434.0,0.18982]
[1741423829624,0.01814809,86435.0,86434.0,0.42121]
[1741423829776,0.01814809,86435.0,86434.0,0.18982]
[1741423832611,0.02971709,86435.0,86434.0,0.18982]
[1741423835205,0.01814809,86435.0,86434.0,0.18982]
[1741423835590,0.02971709,86435.0,86434.0,0.18982]
[1741423835788,0.01814809,86435.0,86434.0,0.18982]
[1741423836836,0.01814809,86435.0,86434.0,0.1899899]
[1741423837258,0.12185062,86435.0,86434.0,0.1899899]
[1741423837961,0.13341962,86435.0,86434.0,0.1899899]
[1741423839458,0.36480662,86435.0,86434.0,0.1899899]
[1741423840677,0.13341962,86435.0,86434.0,0.1899899]
[1741423840813,0.02971709,86435.0,86434.0,0.1899899]
[1741423842324,0.06581931,86435.0,86434.0,0.1899899]
[1741423842883,0.06581931,86435.0,86434.0,0.0001699]
[1741423843760,0.04767122,86435.0,86434.0,0.0001699]
[1741423844336,0.34767122,86435.0,86434.0,0.0001699]
[1741423846237,0.38867972,86435.0,86434.0,0.0001699]
[1741423849326,0.242964,86432.0,86431.0,9.405e-05]
[1741423849477,0.623864,86432.0,86431.0,9.405e-05]
[1741423849699,0.65996622,86432.0,86431.0,9.405e-05]
[1741423854217,0.65996622,86432.0,86411.0,0.0001699]
[1741423854218,0.742987,86424.0,86411.0,0.0001699]
[1741423854414,0.243013,86415.0,86411.0,0.0001699]
[1741423854630,0.27911522,86415.0,86411.0,0.0001699]
[1741423856269,0.30243364,86415.0,86411.0,0.0001699]
[1741423858806,0.32058725,86415.0,86411.0,0.0001699]
[1741423872669,0.29726883,86415.0,86411.0,0.0001699]
[1741423872946,0.29726883,86415.0,86414.0,0.0829398]
[1741423873365,0.05425583,86415.0,86414.0,0.0829398]
[1741423873533,0.05425583,86415.0,86414.0,0.1297398]
[1741423873735,0.06582783,86415.0,86414.0,0.1297398]
[1741423874045,0.04767422,86415.0,86414.0,0.1297398]
[1741423874720,0.00034,86423.0,86420.0,0.242998]
[1741423874935,0.011571,86417.0,86414.0,0.1297398]
[1741423875153,0.011571,86416.0,86414.0,0.1297398]
[1741423875359,0.243013,86415.0,86414.0,0.1297398]
[1741423876261,0.03604842,86415.0,86414.0,0.1297398]
[1741423876461,0.03604842,86418.0,86414.0,0.3727548]
[1741423876788,0.01815186,86415.0,86414.0,0.1297398]
[1741423877339,0.01815186,86415.0,86414.0,0.3611828]
[1741423877568,0.01815186,86415.0,86414.0,0.1297398]
[1741423878028,0.02972386,86415.0,86414.0,0.1297398]
[1741423878375,0.01815186,86415.0,86414.0,0.1413118]
[1741423880039,0.01815186,86415.0,86414.0,0.3611828]
[1741423880238,0.01815186,86415.0,86414.0,0.3727548]
[1741423880673,0.01815186,86415.0,86414.0,0.1297398]
[1741423881500,0.02972386,86415.0,86414.0,0.1297398]
[1741423881740,0.0658218,86415.0,86414.0,0.1297398]
[1741423882160,0.2972628,86415.0,86414.0,0.1297398]
[1741423882471,0.0658218,86415.0,86414.0,0.1297398]
[1741423884400,0.2972628,86415.0,86414.0,0.1297398]
[1741423885393,0.5972628,86415.0,86414.0,0.0003398]
[1741423885925,0.57911094,86415.0,86414.0,0.0003398]
[1741423888558,0.59726558,86415.0,86414.0,0.0003398]
[1741423889915,0.62042024,86415.0,86414.0,0.0003398]
[1741423890271,0.63253804,86415.0,86414.0,0.0003398]
[1741423890831,0.543021,86412.0,86411.0,0.0001699]
[1741423891005,0.57911894,86412.0,86411.0,0.00021475]
[1741423897526,0.66041894,86412.0,86411.0,0.00021475]
[1741423897734,0.98871894,86412.0,86411.0,0.00021475]
[1741423897913,0.543043,86404.0,86397.0,0.00017]
[1741423898112,0.57914094,86404.0,86397.0,0.00017]
[1741423898775,0.59729834,86404.0,86397.0,0.00017]
[1741423902458,0.70661834,86404.0,86397.0,0.00017]
[1741423903240,0.76635919,86404.0,86397.0,0.00017]
[1741423903418,0.90661834,86404.0,86397.0,0.00017]
[1741423903630,0.70661834,86404.0,86397.0,0.00017]
[1741423904032,0.45945332,86404.0,86397.0,0.00017]
[1741423904637,0.69092332,86404.0,86397.0,0.00017]
[1741423904841,0.70249632,86404.0,86397.0,0.00017]
[1741423906488,0.68433892,86404.0,86397.0,0.00017]
[1741423908661,1.01263892,86404.0,86397.0,0.00017]
[1741423909022,1.03079601,86404.0,86397.0,0.00017]
[1741423910518,1.03113601,86404.0,86397.0,0.00017]
[1741423910782,1.01297892,86404.0,86397.0,0.00017]
[1741423911238,0.71701912,86404.0,86397.0,0.00017]
[1741423911789,0.0767,86403.0,86395.0,0.00020991]
[1741423912001,0.0767,86403.0,86377.0,0.1284]
[1741423912002,0.243117,86378.0,86377.0,0.1284]
[1741423912155,0.243117,86378.0,86377.0,0.0501879]
[1741423913165,0.243117,86378.0,86377.0,0.0003879]
[1741423915265,0.27454527,86378.0,86377.0,0.0003879]
[1741423915470,0.243133,86372.0,86371.0,0.0662274]
[1741423918632,0.243133,86372.0,86371.0,0.04806659]
[1741423920840,0.26129379,86372.0,86371.0,0.04806659]
[1741423921063,0.01816079,86372.0,86371.0,0.04806659]
[1741423921265,0.01816079,86372.0,86371.0,0.05964359]
[1741423921471,0.01816079,86372.0,86371.0,0.04806659]
[1741423921606,0.01816079,86372.0,86371.0,0.02990587]
[1741423921807,0.01816079,86372.0,86371.0,0.04148287]
[1741423922217,0.01816079,86372.0,86371.0,0.04165287]
[1741423922417,0.01816079,86372.0,86371.0,0.08825287]
[1741423925131,0.04040118,86378.0,86376.0,0.243121]
[1741423925326,0.28351918,86378.0,86373.0,0.011577]
[1741423925528,0.05197818,86378.0,86371.0,0.07667587]
[1741423925732,0.011577,86372.0,86371.0,0.07667587]
[1741423926127,0.011577,86372.0,86371.0,0.04677]
[1741423927122,0.012577,86372.0,86371.0,0.05377]
[1741423927520,0.06678614,86372.0,86371.0,0.00717]
[1741423928318,0.06578614,86372.0,86371.0,0.00017]
[1741423928746,0.06678614,86372.0,86371.0,0.00717]
[1741423929107,0.08922538,86372.0,86371.0,0.00017]
[1741423929513,0.09022538,86372.0,86371.0,0.00717]
[1741423929990,0.08922538,86372.0,86371.0,0.00017]
[1741423930381,0.09022538,86372.0,86371.0,0.00717]
[1741423931822,0.08922538,86372.0,86371.0,0.00017]
[1741423932023,0.09022538,86372.0,86371.0,0.00617]
[1741423934835,0.09056518,86372.0,86371.0,0.00617]
[1741423935388,0.39056518,86372.0,86371.0,0.00617]
[1741423935566,0.011578,86368.0,86361.0,0.001]
[1741423935765,0.279193,86368.0,86361.0,0.001]
[1741423937269,0.280193,86368.0,86367.0,0.0043398]
[1741423938578,0.29835722,86368.0,86367.0,0.0003398]
[1741423938784,0.29735722,86368.0,86367.0,0.0003398]
[1741423939079,0.543159,86363.0,86361.0,0.001]
[1741423939278,0.657507,86363.0,86361.0,0.001]
[1741423941258,0.985807,86363.0,86361.0,0.001]
[1741423941812,0.986807,86363.0,86361.0,0.001]
[1741423942958,0.985807,86363.0,86361.0,0.001]
[1741423943930,1.452529,86363.0,86361.0,0.001]
[1741423944162,1.452529,86363.0,86338.0,0.11397315]
[1741423944163,0.011582,86339.0,86338.0,0.11397315]
[1741423945410,0.011582,86339.0,86338.0,0.11404034]
[1741423947014,0.243202,86348.0,86339.0,0.231645]
[1741423947214,0.3,86349.0,86340.0,0.231642]
[1741423947544,0.011581,86344.0,86338.0,0.11404034]
[1741423947677,0.011581,86343.0,86338.0,0.11404034]
[1741423948081,0.011581,86342.0,86338.0,0.11404034]
[1741423948287,0.04207563,86344.0,86338.0,0.11404034]
[1741423948486,0.03049463,86344.0,86338.0,0.35726834]
[1741423948822,0.1152457,86342.0,86338.0,0.09587359]
[1741423949435,0.011582,86340.0,86338.0,0.09587359]
[1741423949614,0.011582,86339.0,86338.0,0.09587359]
[1741423949812,0.243227,86339.0,86338.0,0.09587359]
[1741423950015,0.011582,86339.0,86338.0,0.09587359]
[1741423950256,0.1036647,86342.0,86341.0,0.011581]
[1741423950457,0.1036647,86342.0,86341.0,0.057881]
[1741423950639,0.12183126,86342.0,86341.0,0.057881]
[1741423950841,0.12183126,86342.0,86341.0,0.167201]
[1741423951041,0.01816656,86342.0,86341.0,0.15562]
[1741423951462,0.01916656,86342.0,86341.0,0.16162]
[1741423951685,0.01816656,86342.0,86341.0,0.39884]
[1741423951887,0.01916656,86342.0,86341.0,0.48794]
[1741423952667,0.001,86342.0,86341.0,0.48794]
[1741423955752,0.001,86342.0,86341.0,0.24472]
[1741423955959,0.01916608,86342.0,86341.0,0.24472]
[1741423957076,0.12283078,86342.0,86341.0,0.24472]
[1741423957651,0.12283078,86342.0,86341.0,0.16262]
[1741423958794,0.12317058,86342.0,86341.0,0.16262]
[1741423960396,0.01950588,86342.0,86341.0,0.16262]
[1741423960726,0.01950588,86342.0,86341.0,0.0533]
[1741423961207,0.01850588,86342.0,86341.0,0.0463]
[1741423961585,0.01850588,86342.0,86341.0,0.0523]
[1741423961989,0.03008688,86342.0,86341.0,0.0523]
[1741423962629,0.01850588,86342.0,86341.0,0.0523]
[1741423962837,0.01850588,86342.0,86341.0,0.283939]
[1741423963054,0.01850588,86342.0,86341.0,0.0523]
[1741423965356,0.0546392,86342.0,86341.0,0.0523]
[1741423966559,0.0662202,86342.0,86341.0,0.0523]
[1741423968586,0.0546392,86342.0,86341.0,0.0523]
[1741423968929,0.0546392,86342.0,86341.0,0.29552]
[1741423969186,0.0546392,86342.0,86341.0,0.063881]
[1741423969394,0.0662202,86342.0,86341.0,0.006]
[1741423969896,0.2978562,86342.0,86341.0,0.006]
[1741423972297,0.27969012,86342.0,86341.0,0.006]
[1741423973987,0.243227,86339.0,86338.0,0.00023709]
[1741423974183,0.27936032,86339.0,86338.0,0.00023709]
[1741423974399,0.57936032,86339.0,86338.0,0.00023709]
[1741423975052,0.2437568,86341.0,86338.0,0.00023709]
[1741423975424,0.03613924,86340.0,86338.0,0.00023709]
[1741423976004,0.011583,86327.0,86326.0,0.13627832]
[1741423976204,0.011584,86325.0,86324.0,0.15472]
[1741423976387,0.011584,86325.0,86324.0,0.15483621]
[1741423976995,0.02975404,86325.0,86324.0,0.15483621]
[1741423978832,0.03075404,86325.0,86324.0,0.16083621]
[1741423980291,0.02975404,86325.0,86324.0,0.15483621]
[1741423980700,0.02975404,86325.0,86324.0,0.04551621]
[1741423981095,0.03834546,86325.0,86324.0,0.04551621]
[1741423982275,0.02017542,86325.0,86324.0,0.04551621]
[1741423982817,0.02017542,86325.0,86324.0,0.04568611]
[1741423983644,0.02017542,86325.0,86324.0,0.00028611]
[1741423986267,0.05628229,86325.0,86324.0,0.00028611]
[1741423986630,0.07445296,86325.0,86324.0,0.00028611]
[1741423987756,0.06286896,86325.0,86324.0,0.00028611]
[1741423987921,0.07445296,86325.0,86324.0,0.00028611]
[1741423989937,0.06286896,86325.0,86324.0,0.00028611]
[1741423990432,0.07445296,86325.0,86324.0,0.00028611]
[1741423991247,0.30613496,86325.0,86324.0,0.00028611]
[1741423992909,0.28796429,86325.0,86324.0,0.00028611]
[1741423994536,0.58796429,86325.0,86324.0,0.00028611]
[1741423994732,0.61100348,86325.0,86324.0,0.00028611]
[1741423994933,0.37932148,86325.0,86324.0,0.00028611]
[1741423995133,0.35628229,86325.0,86324.0,0.00028611]
[1741423999651,0.011584,86325.0,86324.0,0.00028611]
[1741424000581,0.02033266,86325.0,86324.0,0.00028611]
[1741424003990,0.00874866,86325.0,86324.0,0.00028611]
[1741424004195,0.011923,86326.0,86324.0,0.00028611]
[1741424004637,0.011584,86325.0,86324.0,0.00028611]
[1741424007004,0.00906057,86326.0,86324.0,0.00028611]
[1741424007412,0.35053407,86333.0,86324.0,0.00028611]
[1741424007587,0.03619242,86332.0,86328.0,0.011583]
[1741424007795,0.03619242,86338.0,86334.0,0.011582]
[1741424007993,0.04777442,86338.0,86331.0,0.011583]
[1741424008178,0.011582,86334.0,86328.0,0.011583]
[1741424008392,0.011583,86333.0,86327.0,0.32046]
[1741424008603,0.011583,86333.0,86327.0,0.0772]
[1741424008804,0.011582,86335.0,86328.0,0.231674]
[1741424009007,0.011582,86334.0,86328.0,0.231674]
[1741424009566,0.011583,86333.0,86327.0,0.0772]
[1741424009989,0.011583,86331.0,86327.0,0.0772]
[1741424010397,0.011583,86330.0,86324.0,0.23197011]
[1741424010812,0.011583,86330.0,86321.0,0.0782]
[1741424011009,0.011583,86330.0,86321.0,0.07829436]
[1741424011441,0.011583,86329.0,86321.0,0.07829436]
[1741424011804,0.231631,86345.0,86321.0,0.30998736]
[1741424012036,0.03620554,86334.0,86331.0,0.011583]
[1741424012236,0.03620554,86334.0,86330.0,0.011583]
[1741424012432,0.01816986,86332.0,86329.0,0.011583]
[1741424012635,0.01816986,86332.0,86330.0,0.243252]
[1741424012795,0.02044902,86339.0,86330.0,0.243252]
[1741424013001,0.02044902,86339.0,86329.0,0.011583]
[1741424013614,0.011582,86338.0,86329.0,0.011583]
[1741424013815,0.03620776,86337.0,86329.0,0.011583]
[1741424014221,0.03620776,86337.0,86327.0,0.231676]
[1741424014694,0.03620776,86337.0,86336.0,0.011582]
[1741424014895,0.03620776,86338.0,86334.0,0.318937]
[1741424015098,0.0003398,86342.0,86334.0,0.318937]
[1741424015099,0.0003398,86342.0,86341.0,0.011581]
[1741424015505,0.0003398,86342.0,86337.0,0.011582]
[1741424015748,0.00917891,86342.0,86334.0,0.087282]
[1741424015955,0.0003398,86342.0,86340.0,0.011582]
[1741424016170,0.0003398,86342.0,86335.0,0.231655]
[1741424016344,0.0003398,86342.0,86335.0,0.243237]
[1741424016544,0.0003398,86342.0,86336.0,0.10932]
[1741424018928,0.0003398,86342.0,86337.0,0.061382]
[1741424019323,0.0003398,86342.0,86337.0,0.0498]
[1741424020043,0.01816807,86341.0,86337.0,0.0498]
[1741424021457,0.0003398,86342.0,86339.0,0.011582]
[1741424021663,0.0003398,86342.0,86338.0,0.231647]
[1741424021823,0.0003398,86342.0,86337.0,0.0498]
[1741424022770,0.011582,86340.0,86337.0,0.0498]
[1741424022968,0.2319768,86342.0,86337.0,0.0498]
[1741424022969,0.0003398,86342.0,86337.0,0.0498]
[1741424023374,0.0119208,86342.0,86337.0,0.0498]
[1741424023951,0.0003398,86342.0,86337.0,0.0498]
[1741424024450,0.01850802,86342.0,86337.0,0.0498]
[1741424024757,0.01850802,86342.0,86340.0,0.011582]
[1741424024920,0.01850802,86342.0,86341.0,0.079]
[1741424026016,0.0003398,86342.0,86339.0,0.10928]
[1741424027472,0.01850789,86342.0,86339.0,0.10928]
[1741424028025,0.03008889,86342.0,86339.0,0.10928]
[1741424028436,0.01850789,86342.0,86339.0,0.10928]
[1741424028616,0.011581,86341.0,86339.0,0.10928]
[1741424028812,0.011582,86340.0,86339.0,0.10928]
[1741424029213,0.011582,86340.0,86334.0,0.10928]
[1741424029421,0.03008889,86342.0,86334.0,0.10928]
[1741424029630,0.011582,86336.0,86334.0,0.10928]
[1741424031013,0.011582,86340.0,86334.0,0.10928]
[1741424031228,0.011582,86335.0,86334.0,0.10928]
[1741424031951,0.04772524,86335.0,86329.0,0.1094]
[1741424032194,0.03614324,86334.0,86329.0,0.1094]
[1741424032469,0.011583,86333.0,86329.0,0.1094]
[1741424032901,0.011582,86334.0,86329.0,0.1094]
[1741424033077,0.01816918,86333.0,86329.0,0.1094]
[1741424034015,0.02975218,86333.0,86329.0,0.1094]
[1741424034418,0.011583,86332.0,86329.0,0.1094]
[1741424035500,0.011583,86330.0,86329.0,0.1094]
[1741424035710,0.011583,86330.0,86325.0,0.0487]
[1741424035910,0.011583,86330.0,86327.0,0.1094]
[1741424036145,0.011582,86334.0,86327.0,0.1094]
[1741424036347,0.01816949,86330.0,86327.0,0.120983]
[1741424036733,0.011582,86334.0,86327.0,0.1094]
[1741424036913,0.011582,86334.0,86326.0,0.243262]
[1741424037111,0.011583,86333.0,86326.0,0.243262]
[1741424037319,0.011583,86332.0,86325.0,0.0487]
[1741424037698,0.011583,86331.0,86325.0,0.0487]
[1741424039347,0.01816946,86330.0,86325.0,0.0487]
[1741424041772,0.01816946,86330.0,86328.0,0.011583]
[1741424042772,0.01816946,86330.0,86329.0,0.011583]
[1741424043343,0.01816946,86330.0,86329.0,0.243254]
[1741424043765,0.01816946,86330.0,86326.0,0.231679]
[1741424043931,0.01816946,86330.0,86329.0,0.011583]
[1741424044737,0.01816946,86330.0,86328.0,0.231674]
[1741424045546,0.01816946,86330.0,86327.0,0.243257]
[1741424046295,0.01816946,86330.0,86326.0,0.231679]
[1741424046598,0.01816946,86330.0,86325.0,0.060284]
[1741424047173,0.01816946,86330.0,86325.0,0.291964]
[1741424047377,0.01816946,86330.0,86326.0,0.011583]
[1741424047792,0.01816946,86330.0,86327.0,0.24326]
[1741424048177,0.01816946,86330.0,86329.0,0.243254]
[1741424048982,0.01816946,86330.0,86327.0,0.243259]
[1741424049185,0.01816946,86330.0,86327.0,0.24326]
[1741424049789,0.03621037,86329.0,86327.0,0.24326]
[1741424049989,0.01816946,86330.0,86327.0,0.231677]
[1741424050594,0.01816946,86330.0,86326.0,0.011583]
[1741424050929,0.01816946,86330.0,86327.0,0.011583]
[1741424051089,0.01816946,86330.0,86328.0,0.231674]
[1741424051324,0.01816946,86330.0,86327.0,0.011583]
[1741424051892,0.01816946,86330.0,86327.0,0.243257]
[1741424052435,0.01816946,86330.0,86329.0,0.231671]
[1741424052615,0.01816946,86330.0,86329.0,0.243254]
[1741424052811,0.01816946,86330.0,86328.0,0.011583]
[1741424053060,0.01816946,86330.0,86329.0,0.243254]
[1741424053838,0.05438446,86330.0,86329.0,0.243254]
[1741424054286,0.05438446,86330.0,86329.0,0.231671]
[1741424055726,0.05438446,86330.0,86329.0,0.243254]
[1741424056257,0.036215,86330.0,86329.0,0.243254]
[1741424056472,0.036215,86336.0,86329.0,0.243254]
[1741424056673,0.036215,86335.0,86329.0,0.243254]
[1741424056818,0.036215,86336.0,86329.0,0.243254]
[1741424057725,0.047797,86336.0,86329.0,0.243254]
[1741424057924,0.036215,86335.0,86329.0,0.243254]
[1741424059146,0.01816903,86334.0,86329.0,0.243254]
[1741424059330,0.036215,86333.0,86327.0,0.011583]
[1741424059533,0.036215,86333.0,86325.0,0.0487]
[1741424060564,0.011583,86332.0,86325.0,0.0487]
[1741424060764,0.036215,86331.0,86325.0,0.0487]
[1741424060990,0.011583,86328.0,86325.0,0.0487]
[1741424061143,0.036215,86327.0,86325.0,0.0487]
[1741424061357,0.047798,86327.0,86325.0,0.0487]
[1741424061575,0.036215,86326.0,86325.0,0.0487]
[1741424061778,0.036215,86326.0,86324.0,0.10957]
[1741424062188,0.279481,86325.0,86324.0,0.00017]
[1741424062831,0.047799,86325.0,86324.0,0.00017]
[1741424064049,0.279481,86325.0,86324.0,0.00017]
[1741424064450,0.047799,86325.0,86324.0,0.00017]
[1741424064652,0.279481,86325.0,86324.0,0.00017]
[1741424067089,0.29765275,86325.0,86324.0,0.00017]
[1741424069083,0.06597075,86325.0,86324.0,0.00017]
[1741424069322,0.05438675,86325.0,86324.0,0.00017]
[1741424069442,0.06597075,86325.0,86324.0,0.00017]
[1741424069642,0.05438675,86325.0,86324.0,0.00017]
[1741424070286,0.06597075,86325.0,86324.0,0.00017]
[1741424072968,0.05438675,86325.0,86324.0,0.00017]
[1741424074347,0.06597075,86325.0,86324.0,0.00017]
[1741424076376,0.05438675,86325.0,86324.0,0.00017]
[1741424077940,0.06597075,86325.0,86324.0,0.00017]
[1741424079031,0.05438675,86325.0,86324.0,0.00017]
[1741424080461,0.06597075,86325.0,86324.0,0.00017]
[1741424084169,0.14747075,86325.0,86324.0,0.00017]
[1741424090688,0.129299,86325.0,86324.0,0.00017]
[1741424092692,0.047799,86325.0,86324.0,0.00017]
[1741424100787,0.05438724,86325.0,86324.0,0.00017]
[1741424100988,0.29765324,86325.0,86324.0,0.00017]
[1741424101551,0.011584,86319.0,86318.0,0.03049284]
[1741424101790,0.047799,86319.0,86318.0,0.03055569]
[1741424101986,0.09832633,86320.0,86318.0,0.03055569]
[1741424102692,0.243274,86322.0,86318.0,0.03055569]
[1741424102915,0.011584,86319.0,86318.0,6.285e-05]
[1741424103113,0.04781411,86319.0,86318.0,6.285e-05]
[1741424103961,0.011584,86319.0,86318.0,6.285e-05]
[1741424104932,0.04781452,86319.0,86318.0,6.285e-05]
[1741424107331,0.03623052,86319.0,86318.0,6.285e-05]
[1741424107523,0.011584,86323.0,86318.0,6.285e-05]
[1741424107911,0.011584,86322.0,86318.0,6.285e-05]
[1741424108157,0.011584,86321.0,86318.0,6.285e-05]
[1741424108353,0.011584,86319.0,86318.0,6.285e-05]
[1741424110305,0.02975561,86321.0,86318.0,6.285e-05]
[1741424110706,0.011584,86319.0,86318.0,6.285e-05]
[1741424111306,0.02975561,86321.0,86318.0,6.285e-05]
[1741424111513,0.03624042,86320.0,86318.0,6.285e-05]
[1741424111713,0.011584,86319.0,86318.0,6.285e-05]
[1741424112073,0.04782443,86319.0,86318.0,6.285e-05]
[1741424112901,0.04782443,86319.0,86318.0,0.00023275]
[1741424116284,0.03624043,86319.0,86318.0,0.00023275]
[1741424117696,0.04782443,86319.0,86318.0,0.00023275]
[1741424117875,0.03624043,86319.0,86318.0,0.00023275]
[1741424118300,0.04782443,86319.0,86318.0,0.00023275]
[1741424128116,0.06599856,86319.0,86318.0,0.00023275]
[1741424132897,0.04782443,86319.0,86318.0,0.00023275]
[1741424136351,0.06599873,86319.0,86318.0,0.00023275]
[1741424136570,0.011584,86321.0,86318.0,0.00023275]
[1741424136763,0.0181743,86319.0,86318.0,0.00023275]
[1741424136978,0.06597311,86319.0,86318.0,0.00023275]
[1741424137792,0.04779881,86319.0,86318.0,0.00023275]
[1741424139328,0.12289881,86319.0,86318.0,0.00023275]
[1741424139773,0.03621481,86319.0,86318.0,0.00023275]
[1741424140185,0.06597285,86319.0,86318.0,0.00023275]
[1741424141218,0.02975804,86319.0,86318.0,0.00023275]
[1741424141420,0.06596032,86319.0,86318.0,0.00023275]
[1741424143570,0.04778628,86319.0,86318.0,0.00023275]
[1741424144392,0.011584,86319.0,86318.0,0.00023275]
[1741424144854,0.04778552,86319.0,86318.0,0.00023275]
[1741424145422,0.07375,86320.0,86318.0,0.00023275]
[1741424145838,0.011584,86319.0,86318.0,0.00023275]
[1741424146575,0.04778917,86319.0,86318.0,0.00023275]
[1741424146756,0.011584,86319.0,86318.0,0.00023275]
[1741424146966,0.06596241,86319.0,86318.0,0.00023275]
[1741424151057,0.05437841,86319.0,86318.0,0.00023275]
[1741424151254,0.05437841,86319.0,86318.0,0.23699275]
[1741424151255,0.01817364,86319.0,86318.0,0.23699275]
[1741424151682,0.0003398,86320.0,86319.0,0.1274]
[1741424151813,0.0003398,86320.0,86319.0,0.12855833]
[1741424153033,0.0119238,86320.0,86319.0,0.12855833]
[1741424153242,0.0003398,86320.0,86319.0,0.1274]
[1741424153462,0.0003398,86320.0,86319.0,0.12855837]
[1741424153861,0.11621536,86320.0,86319.0,0.1274]
[1741424154125,0.11621536,86320.0,86319.0,0.0461]
[1741424155513,0.15242801,86320.0,86319.0,0.0461]
[1741424156288,0.04813645,86320.0,86319.0,0.0461]
[1741424157750,0.06630908,86320.0,86319.0,0.0461]
[1741424158589,0.243282,86319.0,86318.0,0.11019275]
[1741424158789,0.27949465,86319.0,86318.0,0.00023275]
[1741424164859,0.03009643,86320.0,86318.0,0.00023275]
[1741424164860,0.02750865,86320.0,86318.0,0.00023275]
[1741424165608,0.243282,86319.0,86318.0,0.00023275]
[1741424166570,0.01817263,86320.0,86318.0,0.00023275]
[1741424167723,0.02975663,86320.0,86318.0,0.00023275]
[1741424169053,0.243282,86319.0,86318.0,0.00023275]
[1741424171707,0.27949873,86319.0,86318.0,0.00023275]
[1741424172478,0.04780073,86319.0,86318.0,0.00023275]
[1741424173086,0.27949873,86319.0,86318.0,0.00023275]
[1741424173501,0.243282,86319.0,86318.0,0.00023275]
[1741424173676,0.27948877,86319.0,86318.0,0.00023275]
[1741424178415,0.2976625,86319.0,86318.0,0.00023275]
[1741424179848,0.0659645,86319.0,86318.0,0.00023275]
[1741424180411,0.2976625,86319.0,86318.0,0.00023275]
[1741424182253,0.0543805,86319.0,86318.0,0.00023275]
[1741424182493,0.03620677,86319.0,86318.0,0.00023275]
[1741424184842,0.05437984,86319.0,86318.0,0.00023275]
[1741424187107,0.03620677,86319.0,86318.0,0.00023275]
[1741424188991,0.03620677,86319.0,86318.0,0.09477619]
[1741424189221,0.03620677,86319.0,86318.0,0.20333775]
[1741424189739,0.03620677,86319.0,86318.0,0.20449614]
[1741424189939,0.03620677,86319.0,86318.0,0.20449613]
[1741424190141,0.03620677,86319.0,86318.0,0.20333775]
[1741424190379,0.05437935,86319.0,86318.0,0.20449614]
[1741424190560,0.05437935,86319.0,86318.0,0.20333775]
[1741424191383,0.05437935,86319.0,86318.0,0.19175275]
[1741424191687,0.05437935,86319.0,86318.0,0.20333775]
[1741424192222,0.05437935,86319.0,86318.0,0.19175275]
[1741424193867,0.03620677,86319.0,86318.0,0.19175275]
[1741424195732,0.03620677,86319.0,86318.0,0.19179275]
[1741424196090,0.03620677,86319.0,86318.0,0.10999275]
[1741424197123,0.05437943,86319.0,86318.0,0.10999275]
[1741424197799,0.05437943,86319.0,86318.0,0.12157775]
[1741424198076,0.05437943,86319.0,86318.0,0.18959275]
[1741424198318,0.05437943,86319.0,86318.0,0.20117775]
[1741424198736,0.03620677,86319.0,86318.0,0.20117775]
[1741424199962,0.03620677,86319.0,86318.0,0.20233614]
[1741424201216,0.05437928,86319.0,86318.0,0.20233614]
[1741424201523,0.05437928,86319.0,86318.0,0.20117775]
[1741424201740,0.05437928,86319.0,86318.0,0.18959275]
[1741424202732,0.03620677,86319.0,86318.0,0.18959275]
[1741424202942,0.03620677,86319.0,86318.0,0.20233613]
[1741424203368,0.03620677,86319.0,86318.0,0.19075113]
[1741424203738,0.03620677,86319.0,86318.0,0.18959275]
[1741424203943,0.03620677,86319.0,86318.0,0.20117775]
[1741424205001,0.03620677,86319.0,86318.0,0.20233616]
[1741424205297,0.0003398,86320.0,86319.0,0.366682]
[1741424205508,0.0003398,86320.0,86319.0,0.367137]
[1741424205855,0.0003398,86320.0,86319.0,0.667137]
[1741424206665,0.0003398,86320.0,86319.0,0.68167785]
[1741424207288,0.0003398,86320.0,86319.0,0.70667785]
[1741424208580,8e-07,86320.0,86319.0,1.02837695]
[1741424209015,8e-07,86320.0,86319.0,1.05337695]
[1741424209271,8e-07,86320.0,86319.0,1.58737695]
[1741424209484,0.00034,86333.0,86332.0,0.543246]
[1741424209693,0.00034,86333.0,86332.0,0.79398685]
[1741424209866,0.00034,86333.0,86332.0,0.81898685]
[1741424210407,0.01850662,86333.0,86332.0,0.81898685]
[1741424212326,0.00034,86333.0,86332.0,0.81898685]
[1741424212527,0.00034,86333.0,86332.0,0.84268754]
[1741424214539,0.00034,86333.0,86332.0,1.16438664]
[1741424215068,0.00034,86333.0,86332.0,1.13938664]
[1741424215440,0.00034,86333.0,86332.0,1.02978664]
[1741424215733,0.00034,86333.0,86332.0,1.13926664]
[1741424216419,0.00034,86333.0,86332.0,1.02978664]
[1741424216620,0.00034,86333.0,86332.0,1.13930664]
[1741424216816,0.01850586,86333.0,86332.0,1.13930664]
[1741424217133,0.01850586,86333.0,86332.0,1.1010651]
[1741424220262,0.01850586,86333.0,86332.0,0.7482991]
[1741424220474,0.01850586,86333.0,86332.0,0.311583]
[1741424220664,0.00034,86333.0,86332.0,0.421023]
[1741424221342,0.00034,86333.0,86331.0,0.243249]
[1741424221512,0.00034,86333.0,86332.0,0.11059815]
[1741424222759,0.00034,86333.0,86332.0,0.12218115]
[1741424223525,0.00034,86333.0,86332.0,0.11059815]
[1741424224023,0.00034,86333.0,86332.0,0.35384415]
[1741424224252,0.00034,86333.0,86332.0,0.352686]
[1741424227640,0.00034,86333.0,86332.0,0.432686]
[1741424229397,0.00034,86333.0,86332.0,0.481086]
[1741424229603,0.00034,86333.0,86332.0,0.49562685]
[1741424230628,0.00034,86333.0,86332.0,0.79562685]
[1741424230830,0.01850656,86333.0,86332.0,0.82062685]
[1741424231835,0.01850656,86333.0,86332.0,1.14232595]